fUSD/lending_fUSD_20240331
["ID","MTS","AMOUNT","RATE_DAILY","PERIOD"]
[321147787,1711911033835,-500.0,0.00054795,120]
[321147788,1711911033844,-819.28870137,0.000548,30]
[321147789,1711911033853,-153.65,0.00054984,120]
[321147790,1711911033862,-7747.98281495,0.0005499,2]
[321147791,1711911033872,-8800.0,0.00055,2]
[321147792,1711911033881,-19345.51439916,0.00055,5]
[321147805,1711911038211,-1418.56,0.00055,5]
[321147806,1711911038331,-7215.78934326,0.00055,5]
[321147807,1711911038340,-245.28023514,0.00055004,120]
[321147808,1711911038349,-245.28023513,0.00055122,120]
[321147809,1711911038358,-1459.299838,0.00055171,120]
[321147810,1711911038370,-275.99064415,0.00055229,30]
[321147811,1711911038379,-2548.71895421,0.00055239,2]
[321147812,1711911038394,-13572.11094579,0.00055239,2]
[321147813,1711911038403,-593.2726,0.00055239,2]
[321147814,1711911038415,-19551.7541,0.00055239,2]
[321147815,1711911038424,-961.34904675,0.00055239,2]
[321147816,1711911038433,-245.28023513,0.00055239,120]
[321147817,1711911038442,-150.19679372,0.00055239,120]
[321147818,1711911038452,-2377.33229562,0.0005524,2]
[321147819,1711911038463,-122.66770438,0.0005524,2]
[321147820,1711911038472,-152.56590483,0.00055241,64]
[321147821,1711911038481,-159.18694307,0.00055241,14]
[321147822,1711911038490,-151.0,0.0005526,120]
[321147823,1711911038499,-409.2773466,0.000553,33]
[321147824,1711911038510,-275.99064415,0.00055329,30]
[321147825,1711911038519,-275.99064415,0.0005533,30]
[321147826,1711911038529,-154.1,0.00055331,120]
[321147827,1711911038539,-154.1,0.00055331,120]
[321147828,1711911038548,-154.1,0.00055331,120]
[321147829,1711911038558,-154.1,0.00055331,120]
[321147830,1711911038567,-156.42207652,0.00055333,3]
[321147831,1711911038577,-157.27631021,0.00055339,4]
[321147832,1711911038586,-631.52242505,0.00055339,4]
[321147833,1711911038607,-379.88735711,0.00055339,4]
[321147834,1711911038618,-530.29574655,0.00055339,4]
[321147835,1711911038627,-884.46740785,0.00055339,4]
[321147837,1711911038637,-300.14249133,0.00055339,4]
[321147839,1711911038646,-14347.70374766,0.00055339,4]
[321147841,1711911038656,-315.09971444,0.00055339,4]
[321147842,1711911038666,-2490.07130463,0.00055339,10]
[321147844,1711911038675,-500.0,0.00055339,120]
[321147846,1711911038685,-194.10196728,0.00055339,120]
[321147848,1711911038694,-500.0,0.00055339,120]
[321147850,1711911038704,-645.3,0.00055339,16]
[321147853,1711911038714,-500.0,0.00055339,120]
[321147856,1711911038723,-500.0,0.00055339,120]
[321147859,1711911038733,-500.0,0.00055339,120]
[321147861,1711911038742,-500.0,0.00055339,120]
[321147863,1711911038751,-500.0,0.00055339,120]
[321147864,1711911038762,-500.0,0.00055339,120]
[321147865,1711911038771,-500.0,0.00055339,120]
[321147866,1711911038779,-500.0,0.00055339,120]
[321147867,1711911038788,-500.0,0.00055339,120]
[321147868,1711911038797,-500.0,0.00055339,120]
[321147869,1711911038807,-500.0,0.00055339,120]
[321147870,1711911038818,-500.0,0.00055339,120]
[321147871,1711911038827,-500.0,0.00055339,120]
[321147872,1711911038836,-302.39,0.00055339,120]
[321147873,1711911038845,-500.0,0.00055339,120]
[321147874,1711911038854,-500.0,0.00055339,120]
[321147875,1711911038865,-500.0,0.00055339,120]
[321147876,1711911038874,-500.0,0.00055339,120]
[321147877,1711911038882,-500.0,0.00055339,120]
[321147878,1711911038891,-500.0,0.00055339,120]
[321147879,1711911038901,-556.76951016,0.00055339,120]
[321147880,1711911038910,-500.0,0.00055339,120]
[321147881,1711911038920,-500.0,0.00055339,120]
[321147882,1711911038929,-500.0,0.00055339,120]
[321147883,1711911038938,-500.0,0.00055339,120]
[321147884,1711911038947,-500.0,0.00055339,120]
[321147885,1711911038956,-500.0,0.00055339,120]
[321147886,1711911038965,-504.69,0.00055339,120]
[321147887,1711911038974,-500.0,0.00055339,120]
[321147888,1711911038983,-500.0,0.00055339,120]
[321147889,1711911038991,-500.0,0.00055339,120]
[321147890,1711911039000,-500.0,0.00055339,120]
[321147891,1711911039010,-500.0,0.00055339,120]
[321147892,1711911039018,-500.0,0.00055339,120]
[321147893,1711911039027,-500.0,0.00055339,120]
[321147894,1711911039037,-303.84257811,0.00055339,120]
[321147895,1711911039046,-500.0,0.00055339,120]
[321147896,1711911039055,-500.0,0.00055339,120]
[321147897,1711911039069,-500.0,0.00055339,120]
[321147898,1711911039080,-500.0,0.00055339,120]
[321147899,1711911039092,-500.0,0.00055339,120]
[321147900,1711911039104,-500.0,0.00055339,120]
[321147901,1711911039115,-500.0,0.00055339,120]
[321147902,1711911039126,-500.0,0.00055339,120]
[321147903,1711911039137,-500.0,0.00055339,120]
[321147904,1711911039148,-500.0,0.00055339,120]
[321147905,1711911039158,-500.0,0.00055339,120]
[321147906,1711911039170,-771.18,0.00055339,120]
[321147907,1711911039179,-646.2,0.00055339,120]
[321147908,1711911039189,-500.0,0.00055339,120]
[321147909,1711911039199,-2290.82,0.00055339,120]
[321147910,1711911039211,-1633.44,0.00055339,120]
[321147911,1711911039220,-411.12355601,0.00055339,120]
[321147912,1711911039231,-500.0,0.00055339,120]
[321147913,1711911039242,-500.0,0.00055339,120]
[321147914,1711911039252,-1149.09,0.00055339,120]
[321147915,1711911039263,-729.53,0.00055339,120]
[321147916,1711911039273,-1813.09,0.00055339,120]
[321147917,1711911039284,-1165.88,0.00055339,120]
[321147918,1711911039295,-963.82,0.00055339,120]
[321147919,1711911039306,-500.0,0.00055339,120]
[321147920,1711911039317,-2186.64,0.00055339,120]
[321147921,1711911039328,-500.0,0.00055339,120]
[321147922,1711911039338,-276.15953791,0.00055339,120]
[321147923,1711911039348,-1453.15,0.00055339,120]
[321147924,1711911039359,-500.0,0.00055339,120]
[321147925,1711911039369,-500.0,0.00055339,120]
[321147926,1711911039379,-1474.93,0.00055339,120]
[321147927,1711911039389,-633.4,0.00055339,120]
[321147928,1711911039400,-563.2,0.00055339,120]
[321147929,1711911039413,-1243.5,0.00055339,120]
[321147930,1711911039424,-500.0,0.00055339,120]
[321147931,1711911039436,-563.55,0.00055339,120]
[321147932,1711911039447,-2891.74,0.00055339,120]
[321147933,1711911039457,-2697.8949866,0.00055339,120]
[321147934,1711911039471,-490.0050134,0.00055339,120]
[321147935,1711911039482,-500.0,0.00055339,120]
[321147936,1711911039493,-328.82805847,0.00055339,120]
[321147937,1711911039504,-552.68,0.00055339,120]
[321147938,1711911039515,-2090.46,0.00055339,120]
[321147939,1711911039526,-1202.36,0.00055339,120]
[321147940,1711911039538,-500.0,0.00055339,120]
[321147941,1711911039550,-579.51,0.00055339,120]
[321147942,1711911039561,-500.0,0.00055339,120]
[321147943,1711911039571,-500.0,0.00055339,120]
[321147944,1711911039580,-3498.16,0.00055339,120]
[321147945,1711911039590,-500.0,0.00055339,120]
[321147946,1711911039600,-500.0,0.00055339,120]
[321147947,1711911039612,-816.2,0.00055339,120]
[321147950,1711911039624,-2182.84,0.00055339,120]
[321147952,1711911039636,-500.0,0.00055339,120]
[321147954,1711911039647,-500.0,0.00055339,120]
[321147956,1711911039659,-500.0,0.00055339,120]
[321147959,1711911039671,-444.6,0.00055339,120]
[321147961,1711911039683,-500.0,0.00055339,120]
[321147963,1711911039694,-500.0,0.00055339,120]
[321147965,1711911039705,-5640.61,0.00055339,120]
[321147968,1711911039717,-4702.63,0.00055339,120]
[321147972,1711911039727,-644.3,0.00055339,120]
[321147974,1711911039737,-810.25,0.00055339,120]
[321147977,1711911039748,-500.0,0.00055339,120]
[321147979,1711911039758,-500.0,0.00055339,120]
[321147981,1711911039768,-500.0,0.00055339,120]
[321147983,1711911039779,-1629.04,0.00055339,120]
[321147985,1711911039790,-203.84254071,0.00055339,120]
[321147987,1711911039801,-500.0,0.00055339,120]
[321147989,1711911039811,-351.03,0.00055339,120]
[321147991,1711911039823,-500.0,0.00055339,120]
[321147993,1711911039833,-693.16,0.00055339,21]
[321147996,1711911039844,-500.0,0.00055339,120]
[321147998,1711911039856,-500.0,0.00055339,120]
[321148000,1711911039868,-500.0,0.00055339,120]
[321148002,1711911039879,-500.0,0.00055339,120]
[321148004,1711911039890,-4741.00666435,0.0005534,30]
[321148006,1711911039901,-4140.37272748,0.0005534,2]
[321148008,1711911039912,-189.99361359,0.0005534,120]
[321148011,1711911039924,-500.0,0.0005534,120]
[321148013,1711911039935,-500.0,0.0005534,120]
[321148015,1711911039946,-500.0,0.0005534,120]
[321148017,1711911039956,-500.0,0.0005534,120]
[321148019,1711911039965,-500.0,0.0005534,120]
[321148021,1711911039976,-500.0,0.0005534,50]
[321148022,1711911039985,-500.0,0.0005534,120]
[321148024,1711911039995,-500.0,0.0005534,120]
[321148026,1711911040005,-129.32542727,0.0005534,120]
[321148028,1711911040018,-370.67457273,0.0005534,120]
[321148030,1711911040028,-428.26,0.0005534,120]
[321148032,1711911040038,-500.0,0.0005534,120]
[321148034,1711911040049,-500.0,0.0005534,120]
[321148037,1711911040060,-839.6,0.0005534,120]
[321148039,1711911040071,-500.0,0.0005534,120]
[321148041,1711911040080,-311.6133409,0.0005534,120]
[321148051,1711911040174,-188.3866591,0.0005534,120]
[321148053,1711911040184,-345.57031829,0.0005534,120]
[321148056,1711911040197,-154.42968171,0.0005534,120]
[321148058,1711911040207,-3312.3975961,0.0005534,120]
[321148060,1711911040219,-1366.4024039,0.0005534,120]
[321148062,1711911040231,-500.0,0.0005534,120]
[321148064,1711911040242,-500.0,0.0005534,120]
[321148066,1711911040252,-498.27764839,0.0005534,120]
[321148069,1711911040269,-41.87235161,0.0005534,120]
[321148071,1711911040279,-934.98,0.0005534,120]
[321148073,1711911040289,-500.0,0.0005534,120]
[321148075,1711911040300,-746.62,0.0005534,120]
[321148077,1711911040310,-500.0,0.0005534,120]
[321148079,1711911040320,-500.0,0.0005534,120]
[321148080,1711911040330,-1053.74,0.0005534,120]
[321148081,1711911040341,-2995.15,0.0005534,120]
[321148082,1711911040350,-500.0,0.0005534,120]
[321148083,1711911040361,-500.0,0.0005534,120]
[321148084,1711911040371,-500.0,0.0005534,120]
[321148085,1711911040381,-514.22,0.0005534,120]
[321148086,1711911040391,-596.48459702,0.0005534,120]
[321148088,1711911040404,-2094.35,0.0005534,120]
[321148090,1711911040414,-500.0,0.0005534,120]
[321148092,1711911040424,-563.78,0.0005534,120]
[321148095,1711911040435,-500.0,0.0005534,120]
[321148097,1711911040446,-500.0,0.0005534,120]
[321148099,1711911040456,-500.0,0.0005534,120]
[321148101,1711911040466,-500.0,0.0005534,120]
[321148103,1711911040476,-351.09642065,0.0005534,120]
[321148111,1711911040628,-310.18357935,0.0005534,120]
[321148112,1711911040638,-500.0,0.0005534,120]
[321148113,1711911040648,-500.0,0.0005534,120]
[321148114,1711911040658,-500.0,0.0005534,120]
[321148115,1711911040668,-500.0,0.0005534,120]
[321148116,1711911040678,-383.67384607,0.0005534,120]
[321148117,1711911040691,-116.32615393,0.0005534,120]
[321148118,1711911040701,-338.79383807,0.0005534,7]
[321148128,1711911043926,-565.63,0.00055339,120]
[321148129,1711911043936,-442.92505785,0.00055339,120]
[321148130,1711911043958,-296.12494215,0.00055339,120]
[321148131,1711911043968,-161.20616193,0.0005534,7]
[321148132,1711911043979,-651.74,0.0005534,120]
[321148133,1711911043989,-425.92889592,0.0005534,120]
[321148134,1711911044001,-74.07110408,0.0005534,120]
[321148135,1711911044011,-500.0,0.0005534,120]
[321148136,1711911044021,-202.22661624,0.0005534,74]
[321148137,1711911044033,-313.04327376,0.0005534,74]
[321148138,1711911044044,-738.23,0.0005534,120]
[321148139,1711911044054,-500.0,0.0005534,120]
[321148140,1711911044064,-500.0,0.0005534,120]
[321148141,1711911044074,-879.8,0.0005534,120]
[321148142,1711911044084,-500.0,0.0005534,120]
[321148143,1711911044094,-500.0,0.0005534,120]
[321148144,1711911044104,-617.34,0.0005534,120]
[321148145,1711911044114,-500.0,0.0005534,120]
[321148146,1711911044124,-500.0,0.0005534,120]
[321148147,1711911044134,-513.77,0.0005534,120]
[321148148,1711911044143,-500.0,0.0005534,120]
[321148149,1711911044153,-500.0,0.0005534,120]
[321148150,1711911044163,-500.0,0.0005534,120]
[321148151,1711911044173,-500.0,0.0005534,120]
[321148152,1711911044183,-500.0,0.0005534,120]
[321148153,1711911044193,-500.0,0.0005534,120]
[321148154,1711911044203,-352.82,0.0005534,120]
[321148155,1711911044214,-500.0,0.0005534,120]
[321148156,1711911044225,-500.0,0.0005534,120]
[321148157,1711911044236,-500.0,0.0005534,120]
[321148158,1711911044246,-500.0,0.0005534,120]
[321148159,1711911044258,-501.36,0.0005534,120]
[321148160,1711911044268,-66137.79306987,0.00055341,2]
[321148161,1711911044280,-18268.69043008,0.00055341,2]
[321148162,1711911044297,-253.18728431,0.00055341,2]
[321148163,1711911044309,-2161.01815078,0.00055341,2]
[321148164,1711911044321,-14217.6,0.00055341,2]
[321148165,1711911044333,-10147.87117894,0.00055341,2]
[321148166,1711911044345,-5657.23665141,0.00055341,2]
[321148167,1711911044365,-275505.71644428,0.00055341,2]
[321148170,1711911045584,8534.19685754,0.00015188,2]
[321148173,1711911045781,-260.33385912,0.00055339,120]
[321148175,1711911046084,-239.66614088,0.00055339,120]
[321148176,1711911046094,-500.0,0.00055339,120]
[321148177,1711911046103,-7938.79719249,0.00055341,2]
[321148179,1711911046148,-53097.81999999,0.00055341,2]
[321148181,1711911046446,-283400.71123359,0.00055341,2]
[321148184,1711911048509,862.95267147,0.00015188,2]
[321148185,1711911049753,939.29437694,0.00015188,2]
[321148186,1711911054793,407.26774146,0.00014732,2]
[321148187,1711911059098,1131.15465862,0.00015188,2]
[321148188,1711911059150,426.95041108,0.00015188,2]
[321148189,1711911059407,488.95597034,0.00015188,2]
[321148190,1711911059433,201.58592493,0.00015188,2]
[321148191,1711911060243,287.28645962,0.00015188,2]
[321148192,1711911063535,1465.71922469,0.00015188,2]
[321148193,1711911064134,1365.08825627,0.00015188,2]
[321148194,1711911065722,617.81087795,0.00015188,2]
[321148195,1711911066421,295.5862763,0.00015188,2]
[321148197,1711911070243,81014.9792891,0.00025,2]
[321148198,1711911070313,64259.66653733,0.00025,2]
[321148199,1711911078200,362.89845886,0.00015188,2]
[321148200,1711911082201,850.83122557,0.00015188,2]
[321148201,1711911083475,501.81720493,0.00015188,2]
[321148202,1711911085058,387.27222009,0.00025,2]
[321148210,1711911237202,22190.13177046,0.00025,2]
[321148211,1711911237225,2000.0,0.00025,2]
[321148212,1711911237247,2000.0,0.00025,2]
[321148213,1711911237273,2000.0,0.00025,2]
[321148214,1711911237293,2000.0,0.00025,2]
[321148215,1711911237315,2000.0,0.00025,2]
[321148216,1711911237336,2000.0,0.00025,2]
[321148217,1711911237357,2000.0,0.00025,2]
[321148218,1711911237378,2000.0,0.00025,2]
[321148219,1711911237401,2000.0,0.00025,2]
[321148220,1711911237422,2000.0,0.00025,2]
[321148221,1711911237443,2000.0,0.00025,2]
[321148222,1711911237468,637.52237987,0.00025,2]
[321148246,1711911637670,150.0,0.00025,2]
[321148247,1711911637691,150.0,0.00025,2]
[321148248,1711911637712,150.0,0.00025,2]
[321148249,1711911637733,150.0,0.00025,2]
[321148250,1711911637754,150.0,0.00025,2]
[321148251,1711911637776,12.5583115,0.00025,2]
[321148252,1711911638154,137.4416885,0.00025,2]
[321148253,1711911638177,150.0,0.00025,2]
[321148254,1711911638197,150.0,0.00025,2]
[321148255,1711911638219,150.0,0.00025,2]
[321148256,1711911638241,204.23538039,0.00025,2]
[321148257,1711911638262,150.0,0.00025,2]
[321148258,1711911638285,1362.47762013,0.00025,2]
[321148259,1711911638307,2000.0,0.00025,2]
[321148260,1711911638330,2000.0,0.00025,2]
[321148261,1711911638353,2000.0,0.00025,2]
[321148262,1711911638375,2000.0,0.00025,2]
[321148263,1711911638398,2000.0,0.00025,2]
[321148264,1711911638421,2000.0,0.00025,2]
[321148265,1711911638444,2000.0,0.00025,2]
[321148266,1711911638466,2000.0,0.00025,2]
[321148267,1711911638490,1026.49532609,0.00025,2]
[321148268,1711911641808,939.29437694,0.00025,2]
[321148270,1711911645544,34.21029697,0.00025,2]
[321148271,1711911645565,1431.50892772,0.00025,2]
[321148272,1711911645789,568.49107228,0.00025,2]
[321148273,1711911645810,2000.0,0.00025,2]
[321148274,1711911645834,75468.42734863,0.00025,2]
[321148290,1711912232739,-155.0,0.00032999,3]
[321148291,1711912232749,-350.0,0.00033,3]
[321148292,1711912232758,-400.0,0.00035,3]
[321148293,1711912232767,-450.0,0.00037,3]
[321148294,1711912232776,-182.5,0.00037808,2]
[321148295,1711912232787,-150.0,0.00037808,2]
[321148296,1711912232797,-162.0,0.000389,2]
[321148297,1711912232806,-16.1786571,0.00038968,4]
[321148298,1711912232848,-141.09765311,0.00038968,4]
[321148299,1711912232857,-170.9630301,0.00038969,4]
[321148300,1711912232869,-460.55939495,0.00038969,4]
[321148301,1711912232878,-150.0,0.00038969,5]
[321148302,1711912232887,-150.0,0.00038969,5]
[321148303,1711912232897,-364.18813852,0.0003897,2]
[321148304,1711912232909,-1011.74147509,0.0003897,2]
[321148305,1711912232921,-307.25884678,0.0003897,2]
[321148306,1711912232932,-2104.85491228,0.0003897,2]
[321148307,1711912232944,-25474.38424905,0.0003897,2]
[321148308,1711912232953,-500.0,0.00039,3]
[321148309,1711912232963,-499.99,0.00039,2]
[321148310,1711912232972,-542.06333978,0.0004,120]
[321148311,1711912232981,-254.56,0.00040973,2]
[321148312,1711912232991,-784.45,0.00041033,2]
[321148313,1711912233002,-800.0,0.00041084,2]
[321148314,1711912233012,-9383.97,0.00041147,2]
[321148315,1711912233021,-176.51,0.00041703,15]
[321148316,1711912233030,-1304.67198545,0.00042,2]
[321148317,1711912233039,-6314.60483227,0.00042047,2]
[321148318,1711912233048,-7541.29825596,0.00042057,2]
[321148319,1711912233057,-152.56590483,0.00042082,14]
[321148320,1711912233067,-159.18694307,0.00042082,10]
[321148321,1711912233076,-227.54628654,0.0004209,2]
[321148322,1711912233085,-227.54628654,0.0004209,2]
[321148323,1711912233095,-227.54628654,0.0004209,2]
[321148324,1711912233103,-227.54628654,0.0004209,2]
[321148325,1711912233112,-227.54628654,0.0004209,2]
[321148326,1711912233123,-227.54628654,0.0004209,2]
[321148327,1711912233133,-227.54628654,0.0004209,2]
[321148328,1711912233142,-227.54628654,0.0004209,2]
[321148329,1711912233151,-227.54628654,0.0004209,2]
[321148330,1711912233161,-227.54628654,0.0004209,2]
[321148332,1711912233170,-227.54628654,0.0004209,2]
[321148333,1711912233179,-227.54628654,0.0004209,2]
[321148334,1711912233188,-227.54628654,0.0004209,2]
[321148335,1711912233197,-227.54628654,0.0004209,2]
[321148336,1711912233206,-227.54628654,0.0004209,2]
[321148337,1711912233215,-227.54628654,0.0004209,2]
[321148338,1711912233224,-227.54628654,0.0004209,2]
[321148339,1711912233233,-227.54628654,0.0004209,2]
[321148340,1711912233242,-227.54628654,0.0004209,2]
[321148341,1711912233251,-227.54628654,0.0004209,2]
[321148342,1711912233260,-227.54628654,0.0004209,2]
[321148343,1711912233270,-227.54628654,0.0004209,2]
[321148344,1711912233279,-227.54628654,0.0004209,2]
[321148345,1711912233288,-227.54628654,0.0004209,2]
[321148346,1711912233297,-227.54628654,0.0004209,2]
[321148347,1711912233306,-227.54628654,0.0004209,2]
[321148348,1711912233316,-227.54628654,0.0004209,2]
[321148349,1711912233325,-227.54628654,0.0004209,2]
[321148350,1711912233334,-227.54628654,0.0004209,2]
[321148351,1711912233342,-227.54628654,0.0004209,2]
[321148352,1711912233351,-227.54628654,0.0004209,2]
[321148353,1711912233360,-227.54628654,0.0004209,2]
[321148354,1711912233370,-227.54628654,0.0004209,2]
[321148355,1711912233378,-227.54628654,0.0004209,2]
[321148356,1711912233387,-227.54628654,0.0004209,2]
[321148357,1711912233397,-227.54628654,0.0004209,2]
[321148358,1711912233405,-227.54628654,0.0004209,2]
[321148359,1711912233415,-227.54628654,0.0004209,2]
[321148360,1711912233424,-227.54628654,0.0004209,2]
[321148361,1711912233433,-227.54628654,0.0004209,2]
[321148362,1711912233442,-183.99376276,0.0004209,2]
[321148363,1711912233450,-183.99376276,0.0004209,2]
[321148364,1711912233459,-423.92528572,0.00042099,16]
[321148365,1711912233468,-45188.16043223,0.000421,30]
[321148366,1711912233481,-23764.30621955,0.000421,30]
[321148367,1711912233492,-384.86813329,0.000421,30]
[321148368,1711912233503,-464.47486671,0.000421,30]
[321148369,1711912233514,-700.0,0.000421,30]
[321148370,1711912233525,-293.26397614,0.000421,30]
[321148371,1711912233536,-650.23905597,0.000421,30]
[321148372,1711912233546,-2142.48428039,0.000421,30]
[321148373,1711912233561,-391.1246881,0.000421,30]
[321148374,1711912233572,-778.90488926,0.000421,30]
[321148375,1711912233590,-423.06501059,0.000421,30]
[321148376,1711912233602,-450.07289998,0.000421,30]
[321148377,1711912233617,-319.24149127,0.000421,30]
[321148378,1711912233628,-357.46371413,0.000421,30]
[321148385,1711912238124,-21531.83365855,0.000421,30]
[321148386,1711912238136,-7108.689,0.000421,30]
[321148387,1711912238192,-267.6,0.000421,30]
[321148388,1711912238370,-35911.20768384,0.000421,30]
[321148389,1711912238380,-17843.94796957,0.000421,120]
[321148390,1711912238390,-200.0,0.000421,2]
[321148391,1711912238400,-154.03,0.000421,4]
[321148392,1711912238410,-154.03,0.000421,4]
[321148393,1711912238425,-154.03,0.000421,4]
[321148394,1711912238435,-150.0,0.00042157,2]
[321148395,1711912238445,-154.1,0.00042167,2]
[321148396,1711912238455,-154.1,0.00042167,2]
[321148397,1711912238466,-154.1,0.00042167,2]
[321148398,1711912238476,-154.1,0.00042167,2]
[321148399,1711912238486,-154.1,0.00042167,2]
[321148400,1711912238496,-154.1,0.00042167,2]
[321148401,1711912238505,-227.54628654,0.00042167,2]
[321148402,1711912238515,-227.54628654,0.00042167,2]
[321148403,1711912238526,-227.54628654,0.00042167,2]
[321148404,1711912238536,-227.54628654,0.00042167,2]
[321148405,1711912238546,-227.54628654,0.00042167,2]
[321148406,1711912238556,-227.54628654,0.00042167,2]
[321148407,1711912238565,-227.54628654,0.00042167,2]
[321148409,1711912238575,-227.54628654,0.00042167,2]
[321148411,1711912238584,-227.54628654,0.00042167,2]
[321148413,1711912238594,-227.54628654,0.00042167,2]
[321148415,1711912238603,-183.99376276,0.00042167,2]
[321148417,1711912238612,-70074.46972603,0.00042177,2]
[321148419,1711912238622,-3208.84640533,0.00042177,2]
[321148421,1711912238631,-593.73179314,0.00042177,6]
[321148423,1711912238640,-193.49438796,0.00042177,2]
[321148435,1711912238649,-7006.08511232,0.00042177,2]
[321148436,1711912238842,-229.89888024,0.00042177,10]
[321148437,1711912238852,-2597.66669845,0.00042177,2]
[321148438,1711912238861,-6065.93291967,0.00042177,2]
[321148439,1711912238870,-24408.54954823,0.00042177,2]
[321148440,1711912238879,-322.68471968,0.00042177,7]
[321148441,1711912238888,-156.09764906,0.00042177,2]
[321148442,1711912238897,-479.24787887,0.00042177,2]
[321148443,1711912238907,-11815.41926554,0.00042177,7]
[321148444,1711912238919,-1184883.70208135,0.00042177,7]
[321148445,1711912238929,-436.46975996,0.00042177,2]
[321148446,1711912238938,-1036.29166687,0.00042177,2]
[321148447,1711912238947,-2500.0,0.00042177,2]
[321148448,1711912238956,-562.78055981,0.00042177,2]
[321148449,1711912238964,-2311.81680079,0.00042177,2]
[321148450,1711912238973,-233.80346046,0.00042177,2]
[321148451,1711912238983,-1596.33824723,0.00042177,2]
[321148452,1711912238991,-1065.7852371,0.00042177,7]
[321148453,1711912239000,-523.54471295,0.00042177,2]
[321148454,1711912239009,-886.3753014,0.00042177,2]
[321148455,1711912239018,-9258.00764253,0.00042177,2]
[321148456,1711912239028,-467.77328392,0.00042177,2]
[321148457,1711912239037,-384.4238418,0.00042177,2]
[321148458,1711912239046,-240.08105957,0.00042177,2]
[321148459,1711912239054,-23853.83877731,0.00042177,14]
[321148460,1711912239063,-1115.98769307,0.00042177,10]
[321148461,1711912239072,-1763.48197311,0.00042177,2]
[321148462,1711912239081,-1374.98423013,0.00042177,10]
[321148463,1711912239090,-532.03852694,0.00042177,2]
[321148464,1711912239099,-4898.13681948,0.00042177,2]
[321148465,1711912239108,-738.85617067,0.00042177,10]
[321148466,1711912239117,-353.91956168,0.00042177,2]
[321148467,1711912239126,-591.63747715,0.00042177,2]
[321148468,1711912239135,-3032.09827416,0.00042177,7]
[321148469,1711912239144,-161611.48070884,0.00042177,2]
[321148470,1711912239153,-192.28621157,0.00042177,7]
[321148471,1711912239162,-18936.72762934,0.00042177,3]
[321148472,1711912239172,-1784.70607232,0.00042177,2]
[321148473,1711912239181,-118049.07905891,0.00042177,14]
[321148474,1711912239189,-3832.89479173,0.00042177,3]
[321148475,1711912239198,-337.06952388,0.00042177,2]
[321148476,1711912239207,-1051.66325488,0.00042177,7]
[321148477,1711912239216,-1329.81484633,0.00042177,20]
[321148478,1711912239225,-5028.66795686,0.00042177,2]
[321148479,1711912239234,-1458.40708415,0.00042177,14]
[321148480,1711912239243,-204.69310846,0.00042177,5]
[321148481,1711912239252,-1003.6667417,0.00042177,2]
[321148482,1711912239261,-213.89584315,0.00042177,2]
[321148483,1711912239270,-636.29558818,0.00042177,2]
[321148484,1711912239279,-1002.79407176,0.00042177,2]
[321148485,1711912239288,-250.0,0.00042177,19]
[321148486,1711912239296,-250.0,0.00042177,18]
[321148487,1711912239305,-245.0,0.00042185,15]
[321148488,1711912239314,-150.5,0.00042185,15]
[321148489,1711912239323,-3340.42,0.00042193,10]
[321148490,1711912239332,-245.0,0.00042195,15]
[321148491,1711912239341,-150.5,0.00042195,15]
[321148492,1711912239350,-245.0,0.00042205,15]
[321148493,1711912239359,-150.5,0.00042205,15]
[321148494,1711912239367,-150.5,0.00042205,15]
[321148495,1711912239376,-154.1,0.00042205,2]